{"text_format":"2","workbook":"xlsx","n_sheets":7,"sheets":["Záradék","Munkanem összesítő","19.Költségtérítések","21.Irtás, föld- és sziklamunka","36.Vakolás és rabicolás","42.Hideg- és melegburkolatok k","47.Felületképzés"],"not_rendered":{"charts":0,"images":0,"macros":0,"external_links":1,"defined_names":0,"comments":0,"pivot_tables":0},"unopened":[],"bounds":{"document_bytes":16777216,"sheet_cells":100000,"run_cost":"one","rows_first":2000,"rows_last":500,"rows_between":2000,"halvings":0,"cell_chars":16384,"cell_head_chars":4096},"cells_cut":0,"cells_raw":0,"read":"whole","date_system":"1900"}

{"sheet":"Záradék","index":0,"n_rows":26,"n_cols":4,"rows_kept":26,"cut":false,"hidden":false,"merged":[[19,2,19,3],[20,2,20,3],[7,0,7,3],[12,0,12,3],[14,0,14,3],[17,2,17,3],[18,2,18,3]]}
["Név : SZTE Juhász Gyula Gyakorló Általános és Alapfokú Művészeti Iskolája"]
["                                       ",null,"                                       "]
["Cím : Szeged, Batthány u. 5.",null," Kelt:      2022 év...........hó...nap "]
["                                       ",null," Készítette   :            "]
[]
[]
["A munka leírása:                       "]
["SZTE JUGYU, Batthány u. 5. alatti óvoda épületben a bejárati folyosó szakasz, öltözőtér és hozzá tartozó folyosó szakasz, iroda és 1 csoportszoba helyiségek fal vakolás, festés, parketta csiszolás és lakkozás munkálatok elvégzése"]
["                                                                              "]
["                                                                              "]
["Készült:                                                           "]
["                                                                              "]
[]
[]
["Költségvetés főösszesítő"]
["Megnevezés",null,"Anyagköltség","Díjköltség"]
["1 Építmény közvetlen költségei",null,{"$f":"'[1]Munkanem összesítő'!C8","v":0},{"$f":"'[1]Munkanem összesítő'!D8","v":0}]
["2. Tartalékkeret(5%)",null,{"$f":"ROUND(C17+D17,0)*0.05","v":0}]
["3.1 ÁFA vetítési alap",null,{"$f":"ROUND(C17+D17,0)+C18","v":0}]
["3.2 ÁFA",0.27,{"$f":"ROUND(C19*B20,0)","v":0}]
["4 A munka ára (HUF)",null,{"$f":"ROUND(C20+C19,0)","v":0}]
["Megnevezés",null,"Anyagköltség","Díjköltség"]
[]
[]
["                                       "]
["                                       "]

{"sheet":"Munkanem összesítő","index":1,"n_rows":8,"n_cols":4,"rows_kept":8,"cut":false,"hidden":false,"merged":[]}
["Ssz.","Megnevezés","Anyagköltség","Díjköltség"]
[1,"Irtás, föld- és sziklamunka",{"$f":"'21.Irtás, föld- és sziklamunka'!H4","v":0},{"$f":"'21.Irtás, föld- és sziklamunka'!I4","v":0}]
[2,"Költségtérítések",{"$f":"'19.Költségtérítések'!H5","v":0},{"$f":"'19.Költségtérítések'!I5","v":0}]
[3,"Vakolás és rabicolás",{"$f":"'36.Vakolás és rabicolás'!H8","v":0},{"$f":"'36.Vakolás és rabicolás'!I8","v":0}]
[4,"Hideg- és melegburkolatok készítése, aljzat előkészítés",{"$f":"'42.Hideg- és melegburkolatok k'!H3","v":0},{"$f":"'42.Hideg- és melegburkolatok k'!I3","v":0}]
[5,"Felületképzés",{"$f":"'47.Felületképzés'!H14","v":0},{"$f":"'47.Felületképzés'!I14","v":0}]
[]
[null,"Összesen:",{"$f":"SUM(C2:C7)","v":0},{"$f":"SUM(D2:D7)","v":0}]

{"sheet":"19.Költségtérítések","index":2,"n_rows":5,"n_cols":9,"rows_kept":5,"cut":false,"hidden":false,"merged":[]}
["Ssz.","Tételszám","Tétel szövege","Menny.","Egység","Anyag egységár","Díj egységre","Anyag összesen","Díj összesen"]
[1,"19-090-1","Építmények átadás előtti utolsó takarítása (pipere)",1,"db",null,null,{"$f":"ROUND(F2*D2,0)","v":0},{"$f":"ROUND(G2*D2,0)","v":0}]
[2,"19-090-2","Bútormozgatások épületen belől, padok, székek, asztalok stb.",1,"klt",null,null,{"$f":"ROUND(F3*D3,0)","v":0},{"$f":"ROUND(G3*D3,0)","v":0}]
[3,"19-090-4","Fóliatakarások készítése",1,"klt",null,null,{"$f":"ROUND(F4*D4,0)","v":0},{"$f":"ROUND(G4*D4,0)","v":0}]
[null,null,"Munkanem összesen (HUF)",{"$nulls":4},{"$f":"ROUND(SUM(H2:H4),0)","v":0},{"$f":"ROUND(SUM(I2:I4),0)","v":0}]

{"sheet":"21.Irtás, föld- és sziklamunka","index":3,"n_rows":4,"n_cols":9,"rows_kept":4,"cut":false,"hidden":false,"merged":[]}
["Ssz.","Tételszám","Tétel szövege","Menny.","Egység","Anyag egységár","Díj egységre","Anyag összesen","Díj összesen"]
[1,"21-011-11.3","Építési törmelék konténeres elszállítása, lerakása, lerakóhelyi díjjal, 5,0 m³-es konténerbe",1,"db",null,null,{"$f":"ROUND(F2*D2,0)","v":0},{"$f":"ROUND(G2*D2,0)","v":0}]
[2,"21-011-12","Munkahelyi depóniából építési törmelék konténerbe rakása,  kézi erővel, önálló munka esetén elszámolva, konténer szállítás nélkül",5,"m3",null,null,{"$f":"ROUND(F3*D3,0)","v":0},{"$f":"ROUND(G3*D3,0)","v":0}]
[null,null,"Munkanem összesen (HUF)",{"$nulls":4},{"$f":"ROUND(SUM(H2:H3),0)","v":0},{"$f":"ROUND(SUM(I2:I3),0)","v":0}]

{"sheet":"36.Vakolás és rabicolás","index":4,"n_rows":8,"n_cols":9,"rows_kept":8,"cut":false,"hidden":false,"merged":[]}
["Ssz.","Tételszám","Tétel szövege","Menny.","Egység","Anyag egységár","Díj egységre","Anyag összesen","Díj összesen"]
[1,"36-090-1.1.3","Vakolatjavítás oldalfalon, tégla-, beton-, kőfelületen vagy építőlemezen, a meglazult, sérült vakolat előzetes leverésével, hiánypótlás 25% felett",4,"m2",null,null,{"$f":"ROUND(F2*D2,0)","v":0},{"$f":"ROUND(G2*D2,0)","v":0}]
[2,"36-000-1.1.2","Vakolat leverése oldalfalról vagy mennyezetről 1,5 cm vastagságig falazó, meszes cementhabarcs",4,"m2",null,null,0,0]
[3,"36-002-2-0310272","Beton alapozók felhordása, kézi erővel, weber.prim 708 betonkontakt, Kód: H708 15",8,"m2",null,null,0,0]
[4,"36-003-1.1.1.1.1-0411036","Oldalfalvakolat készítése, kézi felhordással, zsákos kiszerelésű szárazhabarcsból, sima, normál mész-cement vakolat, 1 cm vastagságban",8,"m2",null,null,0,0]
[5,"36-003-1.1.1.1.2-0411036","Oldalfalvakolat készítése, kézi felhordással, zsákos kiszerelésű szárazhabarcsból, sima, normál mész-cement vakolat, többlet minden további 1 cm vastagságban",2,"m2",null,null,0,0]
[6,"36-002-4-0154156","Vékonyvakolat alapozók felhordása, kézi erővel",12,"m2",null,null,{"$f":"ROUND(F7*D7,0)","v":0},{"$f":"ROUND(G7*D7,0)","v":0}]
[null,null,"Munkanem összesen (HUF)",{"$nulls":4},{"$f":"SUM(H2:H7)","v":0},{"$f":"SUM(I2:I7)","v":0}]

{"sheet":"42.Hideg- és melegburkolatok k","index":5,"n_rows":3,"n_cols":9,"rows_kept":3,"cut":false,"hidden":false,"merged":[]}
["Ssz.","Tételszám","Tétel szövege","Menny.","Egység","Anyag egységár","Díj egységre","Anyag összesen","Díj összesen"]
[1,"42-042-6.1.2.2-0313901","Kisegítő- és részmunkák, parketta csiszolása és lakkozása, nagy igénybevételre, vízbázisú lakkal, ,selyemfényű",40.11,"m2",null,null,{"$f":"ROUND(F2*D2,0)","v":0},{"$f":"ROUND(G2*D2,0)","v":0}]
[null,null,"Munkanem összesen (HUF)",{"$nulls":4},{"$f":"ROUND(SUM(H2:H2),0)","v":0},{"$f":"ROUND(SUM(I2:I2),0)","v":0}]

{"sheet":"47.Felületképzés","index":6,"n_rows":14,"n_cols":9,"rows_kept":14,"cut":false,"hidden":false,"merged":[]}
["Ssz.","Tételszám","Tétel szövege","Menny.","Egység","Anyag egységár","Díj egységre","Anyag összesen","Díj összesen"]
[1,"47-000-1.21.4.1.2-0417972","Belső festéseknél felület előkészítése, részmunkák; glettelés, diszperziós kötőanyagú glettel, vakolt felületen, tagolt felületen",444,"m2",null,null,{"$f":"ROUND(F2*D2,0)","v":0},{"$f":"ROUND(G2*D2,0)","v":0}]
[2,"47-011-15.1.1.1-0151171","Diszperziós festés műanyag bázisú vizes-diszperziós  fehér vagy gyárilag színezett festékkel, új vagy régi lekapart, előkészített alapfelületen, vakolaton, két rétegben, tagolatlan sima felületen  diszperziós belső falfesték, fehér - fal",368,"m2",null,null,{"$f":"ROUND(F3*D3,0)","v":0},{"$f":"ROUND(G3*D3,0)","v":0}]
[3,"47-011-15.1.1.1-0151171","Diszperziós festés műanyag bázisú vizes-diszperziós  fehér vagy gyárilag színezett festékkel, új vagy régi lekapart, előkészített alapfelületen, vakolaton, két rétegben, tagolatlan sima felületen  diszperziós belső falfesték, fehér - mennyezet",113,"m2",null,null,{"$f":"ROUND(F4*D4,0)","v":0},{"$f":"ROUND(G4*D4,0)","v":0}]
[4,"47-011-5.1.1.1","Olajfestések, ólommentes olaj kötőanyagú, fehér vagy színes falfestékkel, ásványi alapfelületen, régi jól tapadó festékrétegen, egy rétegben, tagolatlan sima felületen",76,"m2",null,null,{"$f":"ROUND(F5*D5,0)","v":0},{"$f":"ROUND(G5*D5,0)","v":0}]
[5,"47-000-1.7.1.2","Belső festéseknél felület előkészítése, részmunkák; előfestés, bármilyen padozatú helyiségben, tagolt felületen",5.6,"100 m2",null,null,{"$f":"ROUND(F6*D6,0)","v":0},{"$f":"ROUND(G6*D6,0)","v":0}]
[6,"44-090-1.1","Meglévő mindenféle nyílászáró szerkezet kisebb javítása  faanyag- és vasalatpótlással, 1,2 m²-ig",2,"db",null,null,{"$f":"ROUND(D7*F7, 0)","v":0},{"$f":"ROUND(D7*G7, 0)","v":0}]
[7,"47-000-7.1.2.2","Fafelületek mázolásának előkészítő és részmunkái; régi olajmázolás eltávolítása fa nyílászáró szerkezetről, lekaparással (raskettázás), tagolt felületről",8.1999999999999993,"m2",null,null,{"$f":"ROUND(D8*F8, 0)","v":0},{"$f":"ROUND(D8*G8, 0)","v":0}]
[8,"47-000-7.3.2-0150112","Fafelületek mázolásának előkészítő és részmunkái; simító tapaszolás fafelületen, egyszeri és minden további, tagolt felületen",8.1999999999999993,"m2",null,null,0,0]
[9,"47-010-6.3.2-0213618","Repedt vakolatfelületek vagy régi hordképes homlokzatbevonatok alapozása, szilikongyanta repedésáthidaló festékkel, tagolt sima felületen",25,"m2",null,null,0,0]
[10,"47-031-1.1.1.2-0130701","Belső fafelületek alapmázolása, műgyantabázisú (alkid) oldószertartalmú alapozóval, tagolt felületen  alapozófesték",8.1999999999999993,"m2",null,null,{"$f":"ROUND(D11*F11, 0)","v":0},{"$f":"ROUND(D11*G11, 0)","v":0}]
[11,"47-031-1.3.1.2-0130701","Belső fafelületek fedőmázolása, műgyantabázisú (alkid) oldószertartalmú alapozóval, tagolt felületen  alapozófesték",{"$f":"D9","v":8.1999999999999993},"m2",null,null,0,0]
[12,"47-031-1.5.1.2-0130361","Belső fafelületek zománclakkozása, műgyantabázisú (alkid) oldószertartalmú zománccal, tagolt felületen  magasfényű zománcfesték,",{"$f":"D11","v":8.1999999999999993},"m2",null,null,0,0]
[null,null,"Munkanem összesen (HUF)",{"$nulls":4},{"$f":"SUM(H2:H13)","v":0},{"$f":"SUM(I2:I13)","v":0}]